Workbook

Sheet Sürekli
A1: Adı Soyadı | J1: aaa aaaa | S1: YURTİÇİ SÜREKLİ GÖREV YOLLUĞU BİLDİRİMİ | AS1: Dairesi | AZ1: CÜ Sosyal Bilimler Enst.
A2: Ünvanı | J2: Arş. Gör. | AS2: Bütçe Yılı | BA2: 2 | BB2: 0 | BC2: 1 | BD2: 6
A3: Aylık Kadro Derecesi | J3: 1/4 | AS3: Önceden Avans Almışsa Aldığı
A4: ve Ek Göstergesi | J4: Gösterge Seç | AS4: Saymanlık ve Tarihi
A5: Gündeliği | J5: 29.5 | AS5: Atama Tarihi | AZ5: 2016-01-15
A6: Nereden Nereye Gidildiği | J6: Adı Soyadı | S6: Akrabalık Derecesi | W6: Gündelikler | AH6: Taşıt Ücreti (2) | AL6: Yer Değiştirme Gideri | AZ6: Toplam (1+2+3+4)
W7: Gün Sayısı | Z7: Yevmiye | AD7: Tutarı (1) | AL7: Sabit Unsur (3) | AP7: Değişken Unsur
AP8: Mesafe | AS8: Bir Km | AV8: Tutar (4)
A9: İstanbul-Sivas | J9: =J1 -> aaa aaaa | S9: Kendisi | W9: 1 | Z9: =J5 -> 29.5 | AD9: =W9*Z9 -> 29.5 | AH9: 55 | AL9: =Z9*20 -> 590 | AP9: 891 | AS9: =(J5*5)/100 -> 1.475 | AV9: =AP9*AS9 -> 1314.225 | AZ9: =AD9+AH9+AL9+AV9 -> 1988.725
W10: 1 | Z10: =J5*W10 -> 29.5 | AD10: 29.5 | AH10: =W10*AH9 -> 55 | AL10: =Z10*10 -> 295 | AZ10: 379.5
W11: 1 | Z11: =J5*W11 -> 29.5 | AD11: 29.5 | AH11: =W11*AH10 -> 55 | AL11: =Z11*10 -> 295 | AZ11: 379.5
Z12: =J5*W12 -> 0 | AD12: 0 | AH12: =W12*AH11 -> 0 | AL12: =Z12*10 -> 0 | AZ12: 0
Z13: =J5*W13 -> 0 | AD13: 0 | AH13: =W13*AH12 -> 0 | AL13: =Z13*10 -> 0 | AZ13: 0
Z14: =J5*W14 -> 0 | AD14: 0 | AH14: =W14*AH13 -> 0 | AZ14: 0
Z15: =W15*J5 -> 0 | AD15: =W15*Z15 -> 0 | AH15: 0 | AZ15: 0 | BX15: 2200 | BZ15: Kendisi
Z16: =W16*J5 -> 0 | AD16: 0 | AH16: 0 | AZ16: 0 | BX16: 2300 | BZ16: Eşi
Z17: =W17*J5 -> 0 | AD17: 0 | AH17: 0 | AZ17: 0 | BX17: 2700 | BZ17: Annesi
Z18: =W18*J5 -> 0 | AD18: 0 | AH18: 0 | AZ18: 0 | BX18: 3600 | BZ18: Babası
Z19: =W19*J5 -> 0 | AD19: 0 | AH19: 0 | AZ19: 0 | BX19: 4800 | BZ19: Oğlu
Z20: =W20*J5 -> 0 | AD20: 0 | AH20: 0 | AZ20: 0 | BX20: 5300 | BZ20: Kızı
Z21: =W21*J5 -> 0 | AD21: 0 | AH21: 0 | AZ21: 0 | BX21: 6400
Z22: =W22*J5 -> 0 | AD22: 0 | AH22: 0 | AZ22: 0
Z23: =W23*J5 -> 0 | AD23: 0 | AH23: 0 | AZ23: 0
A24: GENEL TOPLAM | AZ24: =SUM(AZ9:AZ23) -> 2747.725
B26: ……………………….. | S26: CÜ Sosyal Bilimler Enstitüsüne atanan | AG26: =J1 -> aaa aaaa | AP26: ve/aile fertlerine ait yurtiçi sürekli görev yolluğu olarak
A27: =CONCATENATE(D50,F51,O50) -> tahakkuk eden Ikibinyediyüzkırkyedi TL ve Yetmişüç KURUŞ 'u gösterir bildirimdir.
Q30: =AZ5+1 -> 2016-01-16
Q31: Birim Yetkilisi*
H32: Adı Soyadı | P32: : | Q32: Prof. Dr. | AP32: =J2 -> Arş. Gör. | AV32: =J1 -> aaa aaaa
I33: Ünvanı | P33: : | Q33: Müdür
I34: İmzası | P34: : | AT34: İmza
A36: (1) Bu kısım bildirim sahibinin atama işleminden
A37: bilgisi olan amir tarafından imzalanacaktır.
D50: tahakkuk eden | J50: =AZ24 -> 2747.725 | O50: 'u gösterir bildirimdir.
F51: =ParaCevir(AZ24) -> Ikibinyediyüzkırkyedi TL ve Yetmişüç KURUŞ
G53: ( | H53: TL)
N58: 1
A101: Binali KOÇ Cumhuriyet Ünivetsitesi Sosyal Bilimler Enstitüsü Enstitü Sekreteri

Sheet Geçici Görev Yolluğu
A1: Adı Soyadı | K1: aaa aaa | V1: YURTİÇİ GEÇİCİ GÖREV YOLLUĞU BİLDİRİMİ
A2: Ünvanı | K2: Dr. Öğr.Üyesi
A3: Aylık Kadro Derecesi ve Ek Göstergesi | K3: 1/4 | P3: 3600 | AX3: Dairesi | BD3: Cumhuriyet Üniversitesi Sosyal Bilimler Enst.
A4: Gündeliği | K4: 40.05 | AX4: Bütçe Yılı | BD4: 2 | BE4: 0 | BF4: 1 | BG4: 8
A5: Otuma ve Yolculuk Tarihleri | K5: Alacaklının Nereden Nereye Yolculuk Ettiği veya Nerede Oturduğu | V5: Yolculuk ve Oturma Günleri | AL5: Yol Giderleri | AX5: Genel Toplam (1+2) | BD5: Hareket Saatleri
V6: Gün Sayısı | Y6: Yevmiye | AC6: Bir Günlüğü | AG6: Tutarı (1) | AL6: Çeşidi | AQ6: Mevkii | AT6: Tutar (2) | BD6: Gidiş | BG6: Dönüş
A7: 2016-02-01 | K7: Ev-Terminal | AL7: Taksi | AT7: 15 | AX7: =AG7+AT7 -> 15
A8: =A7 -> 2016-02-01 | K8: İstanbul | P8: - | Q8: Sivas | V8: 0 | Y8: =K4*V8 -> 0 | AC8: =K4*V8 -> 0 | AG8: =V8*K4 -> 0 | AL8: Otobüs | AT8: 50 | AX8: =AG8+AT8 -> 50
A9: =A8 -> 2016-02-01 | K9: Terminal-Kampüs | AL9: Taksi | AT9: 15 | AX9: 15
A10: =A9+V8 -> 2016-02-01 | K10: =Q8 -> Sivas | P10: 'da | V10: 1 | Y10: =K4 -> 40.05 | AC10: =K4 -> 40.05 | AG10: =V10*K4 -> 40.05 | AX10: 40.05
A11: =(A10+V12)+(V10-1) -> 2016-02-01 | K11: Kampüs-Terminal | AL11: Taksi | AT11: 15 | AX11: 15
A12: =A11 -> 2016-02-01 | K12: =Q8 -> Sivas | P12: - | Q12: =K8 -> İstanbul | V12: 0 | Y12: =K4*V12 -> 0 | AC12: =K4*V12 -> 0 | AG12: =V12*K4 -> 0 | AL12: Otobüs | AT12: 50 | AX12: 50
A13: =A12 -> 2016-02-01 | K13: Ev-Terminal | AL13: Taksi | AT13: 15 | AX13: 15 | BY13: 2200
BY14: 2300
BY15: 2700
BY16: 3000
BY17: 3600
A18: T.C. Kimlik No* | BY18: 5300
A19: Banka IBAN Numarası* | K19: TR | BY19: 5800
A20: Banka Şube Adı* | BY20: 6400
A21: Kadro Dere. ve Ek Göst.* | U21: Telefon* | AG21: =SUM(AG7:AG20) -> 40.05 | AT21: =SUM(AT7:AT20) -> 160 | AX21: =SUM(AX7:AX20) -> 200.05 | BY21: 8000
A23: Yüksek Lisans Tez Savunması sınavını yapmak | R23: üzere | U23: =A7 -> 2016-02-01 | Z23: tarihinden | AD23: =A13 -> 2016-02-01 | AI23: tarihine kadar süren görev ve oturma gündeliklerinin yolculuk gideri olarak
A24: =CONCATENATE(E46,F47,G49,AX21,H49,P46) -> tahakkuk eden Ikiyüz TL ve Beş KURUŞ (200,05 TL) gösterir bildirimdir.
R27: =A13 -> 2016-02-01
R28: Birim Yetkilisi*
M29: Adı Soyadı | Q29: : | R29: Prof. Dr. | AL29: =K2 -> Dr. Öğr.Üyesi | AS29: =K1 -> aaa aaa
L30: Ünvanı | Q30: : | R30: Müdür
L31: İmzası | Q31: : | AR31: İmza
A34: * İlgili tarafından doldurulacaktır.
E46: tahakkuk eden | K46: =AX21 -> 200.05 | P46: gösterir bildirimdir.
F47: =ParaCevir(AX21) -> Ikiyüz TL ve Beş KURUŞ
G49: ( | H49: TL)
A53: 0
A54: 1
A57: SEÇİNİZ
A58: Doktora Yeterlilik sınavını yapmak
A59: Doktora Tez Savunması sınavını yapmak
A60: Yüksek Lisans Tez Savunması sınavını yapmak
A61: Tez İzleme sınavını yapmak
A62: Toplantıya katılmak
A63: Konferansa katılmak
A64: Seminere katılmak
A101: Binali KOÇ Cumhuriyet Ünivetsitesi Sosyal Bilimler Enstitüsü Enstitü Sekreteri
